bitfinex/quotes_ETHUSD_20250213
["timestamp","ask_amount","ask_price","bid_price","bid_amount"]
[1739464053632,0.0075,2632.6,2631.7,3.79975]
[1739464053633,3.79889,2632.4,2631.7,3.79975]
[1739464053832,3.79926,2632.1,2631.5,4.63273]
[1739464053995,3.79953,2632.0,2631.5,0.8327]
[1739464054193,3.79953,2632.0,2631.5,1.295987]
[1739464054392,3.79915,2632.2,2631.6,3.79993]
[1739464054619,6.07897,2632.3,2631.7,3.7998]
[1739464054933,6.07897,2632.3,2631.5,1.295987]
[1739464054934,3.79948,2632.0,2631.5,3.80004]
[1739464055257,6.07908,2632.3,2631.3,3.8004]
[1739464055398,3.79927,2632.1,2631.5,3.80001]
[1739464055583,3.79927,2632.1,2631.4,4.26048]
[1739464055788,3.79957,2631.9,2631.4,4.26048]
[1739464055984,4.57827,2631.9,2631.4,4.26048]
[1739464056221,0.7787,2631.9,2631.4,0.46023]
[1739464056429,0.7787,2631.9,2631.6,3.79988]
[1739464056631,0.7787,2631.9,2631.4,8.06057]
[1739464056929,4.57824,2631.9,2631.2,4.60236]
[1739464057131,3.79987,2631.7,2631.2,3.80046]
[1739464057302,3.79975,2631.8,2631.2,7.60091]
[1739464057649,3.0587,2631.9,2631.2,3.80044]
[1739464057851,3.79977,2631.8,2631.2,3.80044]
[1739464058147,7.59958,2631.8,2631.2,3.80044]
[1739464058359,3.80008,2631.6,2631.0,3.80077]
[1739464058491,3.80028,2631.4,2630.9,4.62026]
[1739464058896,6.8848,2631.3,2630.8,3.80105]
[1739464059117,0.06223387,2631.2,2630.8,3.80105]
[1739464059617,0.06223387,2631.2,2630.4,6.025]
[1739464059618,3.80124,2630.8,2630.4,6.025]
[1739464059957,3.80135,2630.7,2630.4,6.025]
[1739464060115,4.47175887,2630.7,2630.4,6.025]
[1739464060319,0.06223387,2630.7,2630.4,6.025]
[1739464060551,3.86350387,2630.7,2630.4,6.025]
[1739464061117,0.06223387,2630.7,2630.4,6.025]
[1739464061322,3.86362387,2630.7,2630.4,6.025]
[1739464061565,3.0827,2630.8,2630.4,6.025]
[1739464061747,0.06200482,2630.6,2630.4,6.025]
[1739464062056,4.60382,2630.8,2630.4,6.025]
[1739464062360,0.8027,2630.8,2630.4,6.025]
[1739464062563,3.86327482,2630.7,2630.4,6.025]
[1739464062744,0.06200482,2630.7,2630.4,6.025]
[1739464062948,0.06200482,2630.7,2630.2,3.8019]
[1739464063121,3.80135,2630.7,2630.1,7.60402]
[1739464063319,3.80135,2630.7,2630.1,3.80201]
[1739464063320,3.86344482,2630.6,2630.1,3.80201]
[1739464063626,0.55,2630.5,2630.0,3.80225]
[1739464063823,0.06154654,2630.4,2630.0,3.80225]
[1739464064164,0.06154654,2630.4,2630.2,3.80187]
[1739464064364,0.06154654,2630.4,2630.3,3.80184]
[1739464064561,0.565,2630.6,2629.7,3.80271]
[1739464064864,0.8288,2630.3,2629.8,6.80249]
[1739464065032,0.8288,2630.3,2629.7,3.80271]
[1739464065033,3.802,2630.2,2629.7,3.80271]
[1739464065237,0.06100069,2630.2,2629.7,3.80271]
[1739464065633,0.06100069,2630.2,2629.9,3.8024]
[1739464066063,0.7974,2630.6,2630.3,3.80184]
[1739464066268,4.59883,2630.6,2630.1,3.80212]
[1739464066435,4.59883,2630.6,2629.9,4.18258]
[1739464066649,4.59882,2630.6,2629.9,3.80234]
[1739464066842,4.59882,2630.6,2629.6,0.7937]
[1739464067043,0.7974,2630.6,2630.3,3.80184]
[1739464067244,0.7974,2630.6,2630.2,3.80191]
[1739464067445,4.59889,2630.6,2630.0,7.60432]
[1739464067779,4.261549,2630.5,2629.8,3.80256]
[1739464067948,3.80166,2630.5,2629.9,3.80231]
[1739464068137,4.59881,2630.6,2630.1,3.80208]
[1739464068535,3.8018,2630.4,2629.4,4.5901]
[1739464068734,3.80182,2630.4,2629.8,3.80245]
[1739464068950,3.80155,2630.5,2629.8,3.80245]
[1739464069149,3.8018,2630.4,2629.8,3.80245]
[1739464069365,3.80191,2630.3,2629.8,3.80245]
[1739464069764,4.59883,2630.6,2630.1,3.80205]
[1739464069968,0.987883,2630.5,2630.1,3.80205]
[1739464070149,0.7974,2630.6,2629.6,3.80285]
[1739464070357,4.59888,2630.6,2630.1,3.80207]
[1739464070579,3.80186,2630.3,2629.8,3.80243]
[1739464070953,3.80222,2630.1,2629.7,3.80268]
[1739464071167,0.015,2630.5,2630.0,3.8022]
[1739464071364,0.7974,2630.6,2630.2,3.80198]
[1739464071567,0.7974,2630.6,2629.7,3.88983339]
[1739464071770,0.7974,2630.6,2630.3,3.80178]
[1739464072181,0.7974,2630.6,2630.5,3.80155]
[1739464072381,5.18006,2630.9,2630.4,3.80158]
[1739464072587,0.7734,2631.2,2630.6,3.80133]
[1739464072756,4.57405,2631.2,2630.6,3.80133]
[1739464072963,3.80082,2631.1,2630.6,3.80133]
[1739464073253,0.7734,2631.2,2630.2,3.7557]
[1739464073453,0.7734,2631.2,2630.6,3.80135]
[1739464073656,0.7734,2631.2,2630.9,3.80088]
[1739464073890,0.06108832,2631.1,2630.8,3.8011]
[1739464074097,0.06108832,2631.1,2630.9,3.80088]
[1739464074458,0.06108832,2631.1,2630.6,3.80131]
[1739464074784,3.86185832,2631.1,2630.6,3.80131]
[1739464074952,0.06108832,2631.1,2630.9,3.80085]
[1739464075152,0.06108832,2631.1,2631.0,3.80083]
[1739464075357,0.8202,2631.5,2631.1,3.80066]
[1739464075686,0.06166119,2631.1,2631.0,3.80083]
[1739464075846,3.80027,2631.4,2630.8,7.60215]
[1739464076043,4.62038,2631.5,2630.9,4.640165]
[1739464076487,0.061769,2631.4,2630.9,4.640165]
[1739464076789,3.80053,2631.3,2630.7,0.7905]
[1739464076986,3.80064,2631.2,2630.7,0.7905]
[1739464077287,3.80064,2631.2,2630.3,4.90094267]
[1739464077288,3.80085,2631.0,2630.4,7.60322]
[1739464077453,4.62105,2631.0,2630.4,3.8016]
[1739464077658,0.06183638,2630.9,2630.4,3.8016]
[1739464077874,0.06183638,2630.9,2630.4,4.978556]
[1739464078078,0.06183638,2630.9,2630.4,3.8016]
[1739464078386,3.86288638,2630.9,2630.4,7.60321]
[1739464078551,3.86288638,2630.9,2630.4,3.8016]
[1739464078751,0.06183638,2630.9,2630.4,3.8016]
[1739464079110,0.06183638,2630.9,2630.5,4.219177]
[1739464079327,0.06183638,2630.9,2630.3,0.37557]
[1739464079588,3.8012,2630.8,2630.3,0.37557]
[1739464079773,0.06160728,2630.8,2630.5,3.80152]
[1739464079960,0.06160728,2630.8,2630.6,3.80138]
[1739464080164,0.8202,2631.0,2630.4,3.80159]
[1739464080367,0.7519,2630.6,2629.7,6.026]
[1739464080695,0.7519,2630.6,2630.1,3.80202]
[1739464080988,3.8631975,2630.5,2629.8,3.80244]
[1739464081193,3.80177,2630.4,2629.8,4.868214]
[1739464081493,3.86320205,2630.4,2629.8,4.868214]
[1739464081699,0.06143205,2630.4,2629.8,1.065774]
[1739464082000,0.7519,2630.6,2630.3,3.80175]
[1739464082163,0.7519,2630.6,2630.1,0.8293]
[1739464082164,0.05900134,2630.3,2630.1,0.8293]
[1739464082360,3.80156,2630.5,2630.0,3.80214]
[1739464082673,0.05852977,2630.2,2630.0,3.80214]
[1739464082996,2.28,2630.5,2630.0,3.80214]
[1739464083199,2.28,2630.8,2630.0,0.57258984]
[1739464083407,6.08112,2630.8,2630.3,3.80171]
[1739464083979,2.28,2630.8,2630.5,3.80146]
[1739464084384,1.50716987,2630.9,2630.6,3.80141]
[1739464084670,0.7519,2630.9,2630.5,3.80146]
[1739464084867,0.7519,2630.9,2630.6,3.80133]
[1739464085067,0.7519,2630.9,2630.5,3.80146]
[1739464085280,3.715174,2630.9,2630.1,4.62483]
[1739464085606,3.80141,2630.6,2630.1,3.80203]
[1739464085802,3.80141,2630.6,2629.9,3.80233]
[1739464085803,2.28,2630.5,2629.9,3.80233]
[1739464086100,2.28,2630.4,2630.2,3.80196]
[1739464086300,2.28,2630.4,2630.3,3.80184]
[1739464086960,2.28,2630.6,2630.3,3.80184]
[1739464087600,4.56341284,2631.1,2630.6,3.80132]
[1739464087761,0.7919,2631.1,2630.3,3.80177]
[1739464087963,0.809,2631.4,2630.6,4.33088574]
[1739464088311,0.809,2631.4,2631.0,3.80079]
[1739464088603,0.809,2631.4,2630.9,3.80089]
[1739464088774,3.089,2631.4,2630.9,3.80089]
[1739464088975,0.809,2631.4,2630.7,0.8245]
[1739464089194,0.7542804,2631.9,2631.4,3.80016]
[1739464089690,3.79971,2631.8,2631.2,4.56285]
[1739464089898,3.0342804,2631.9,2631.4,3.80017]
[1739464090094,6.8338304,2631.9,2631.2,0.7624]
[1739464090395,6.8338504,2631.9,2631.3,3.80026]
[1739464090558,6.8338504,2631.9,2631.4,3.80014]
[1739464090764,2.28,2631.9,2631.5,3.80011]
[1739464090966,2.28,2631.9,2631.3,3.80031]
[1739464091174,3.79981,2631.8,2631.2,4.56292]
[1739464091379,3.79978,2631.8,2631.3,3.80031]
[1739464091579,2.28,2631.9,2631.5,3.80007]
[1739464091765,0.8311,2632.0,2631.5,3.80007]
[1739464091965,0.8311,2632.0,2631.5,3.80002]
[1739464092188,4.63052,2632.0,2631.5,3.80002]
[1739464092393,3.79982,2631.8,2631.2,5.699228]
[1739464092708,3.79998,2631.6,2630.9,0.7545]
[1739464093004,3.79998,2631.6,2631.1,3.8006]
[1739464093162,7.59957,2631.8,2631.2,3.80051]
[1739464093364,4.63058,2632.0,2631.4,3.80015]
[1739464093668,3.79993,2631.7,2631.0,3.80074]
[1739464093883,0.8133,2631.6,2630.6,0.7545]
[1739464094086,3.80098,2630.9,2630.4,4.181877]
[1739464094285,4.59474,2631.1,2630.5,3.80154]
[1739464094506,8.39551,2631.1,2630.6,0.4181717]
[1739464094711,4.59474,2631.1,2630.5,3.80147]
[1739464094914,8.39553,2631.1,2630.5,3.80147]
[1739464095112,4.59474,2631.1,2630.4,0.380177]
[1739464095283,3.80099,2630.9,2630.4,0.380177]
[1739464095483,7.60205,2630.9,2630.3,0.802]
[1739464095686,0.76381358,2631.0,2630.3,0.802]
[1739464095984,3.80117,2630.8,2630.0,12.13851286]
[1739464096184,0.76381358,2631.0,2630.2,3.0]
[1739464096384,3.80145,2630.6,2630.0,4.61569]
[1739464096586,3.80163,2630.5,2630.0,4.61569]
[1739464096791,3.80163,2630.5,2630.1,3.0]
[1739464097131,3.80145,2630.6,2630.0,0.8135]
[1739464097132,3.80173,2630.4,2630.0,0.8135]
[1739464097576,3.80185,2630.3,2630.0,0.8135]
[1739464097776,3.80173,2630.4,2629.9,1.282867]
[1739464098072,3.80226,2630.1,2629.7,6.8568]
[1739464098291,3.80221,2630.1,2629.7,6.8568]
[1739464098504,3.80236,2630.0,2629.7,6.8568]
[1739464098890,3.80257,2629.8,2629.7,6.026]
[1739464099297,3.80257,2629.8,2628.8,4.47504814]
[1739464099298,3.80296,2629.6,2629.0,3.80361]
[1739464099519,3.80275,2629.7,2629.2,3.80342]
[1739464100019,3.80258,2629.8,2628.9,0.7525]
[1739464100020,3.80324,2629.4,2628.9,0.7525]
[1739464100219,3.80322,2629.4,2628.9,5.02641924]
[1739464100387,3.80286,2629.6,2629.0,3.80365]
[1739464100591,0.7658,2629.7,2629.2,3.8033]
[1739464100889,3.80228,2630.0,2629.2,3.8033]
[1739464100890,0.761,2630.0,2629.2,3.8033]
[1739464101202,3.80283,2629.7,2629.0,3.80364]
[1739464101399,3.80283,2629.7,2629.1,4.30611992]
[1739464101600,3.80252,2629.9,2629.2,3.80341]
[1739464101800,3.8026,2629.8,2629.2,3.80341]
[1739464102016,3.80275,2629.7,2629.2,3.80341]
[1739464102381,0.761,2630.0,2629.2,3.80332]
[1739464102382,3.8027,2629.8,2629.2,3.80332]
[1739464102585,3.8027,2629.8,2629.2,4.61436699]
[1739464102778,7.60535,2629.8,2629.2,4.61431699]
[1739464102977,3.80272,2629.7,2629.2,4.61431699]
[1739464103521,0.761,2630.0,2629.2,4.61428699]
[1739464103716,3.80308,2629.5,2628.9,1.22255924]
[1739464103917,0.761,2630.0,2628.9,1.22255924]
[1739464104123,3.80295,2629.6,2628.9,5.02634924]
[1739464104418,3.86208953,2629.5,2628.9,5.02634924]
[1739464104593,0.05908953,2629.5,2629.1,3.80357]
[1739464104789,7.66522953,2629.5,2629.0,3.80372]
[1739464104995,0.05908953,2629.5,2628.9,1.22255924]
[1739464105193,3.86216953,2629.5,2628.9,1.22255924]
[1739464105395,3.80328,2629.4,2628.9,1.22255924]
[1739464105796,3.86107378,2629.4,2628.9,5.02635924]
[1739464106404,3.86105378,2629.4,2628.9,5.02635924]
[1739464106605,0.05779378,2629.4,2628.8,0.1441624]
[1739464106920,3.80352,2629.2,2628.8,3.9481624]
[1739464107080,3.86104378,2629.4,2628.8,3.9481624]
[1739464107081,3.8033,2629.3,2628.8,3.9481624]
[1739464107281,0.05769248,2629.1,2628.9,3.80378]
[1739464107495,3.80322,2629.4,2628.9,4.57897924]
[1739464107866,0.7748,2629.5,2629.1,3.80353]
[1739464107993,0.05769248,2629.3,2629.0,3.80371]
[1739464108321,3.80287,2629.6,2629.1,3.80355]
[1739464108625,0.843209,2629.6,2628.8,0.1441624]
[1739464108827,3.80318,2629.4,2628.8,0.1441624]
[1739464108981,3.80318,2629.4,2628.8,3.9480524]
[1739464109201,3.80337,2629.3,2628.8,3.9481624]
[1739464109402,0.05769248,2629.3,2628.8,0.1441624]
[1739464109740,3.86102248,2629.3,2628.9,3.80386]
[1739464109922,3.8035,2629.2,2628.8,0.1441624]
[1739464110534,0.05769248,2629.1,2628.8,0.1441624]
[1739464110692,0.10523749,2629.1,2628.8,0.1441624]
[1739464110892,4.58735,2629.2,2628.8,0.1441624]
[1739464111224,3.80379,2629.0,2628.8,0.1441624]
[1739464111426,0.05769248,2629.1,2628.8,0.1441624]
[1739464111621,0.7838,2629.2,2628.8,0.1441624]
[1739464111823,0.7838,2629.2,2628.8,3.9481424]
[1739464111824,0.05769248,2629.0,2628.8,3.9481424]
[1739464112027,1.242521,2629.2,2628.8,3.9481424]
[1739464112229,0.7838,2629.2,2628.8,0.1441624]
[1739464112399,3.8033,2629.3,2628.8,3.9480924]
[1739464112599,4.55833957,2629.4,2628.9,3.80379]
[1739464112851,0.8316,2629.5,2628.8,0.1441624]
[1739464113040,0.8316,2629.5,2628.9,3.80373]
[1739464113269,0.7784,2629.8,2629.2,3.80337]
[1739464113565,3.80294,2629.6,2629.0,0.7657]
[1739464113762,4.57273119,2629.7,2629.2,3.8034]
[1739464114064,3.80285,2629.6,2629.0,0.7657]
[1739464114222,3.80311,2629.5,2628.9,3.80386]
[1739464114562,4.57275119,2629.7,2629.0,3.80366]
[1739464114868,4.58105,2629.8,2629.3,3.80315]
[1739464115166,3.80316,2629.4,2628.9,4.70932081]
[1739464115308,3.80316,2629.4,2628.8,4.7243724]
[1739464115517,0.8188,2629.2,2628.8,0.1441624]
[1739464115778,3.80257,2629.8,2628.9,4.58557]
[1739464115962,0.8199,2629.9,2628.9,4.58557]
[1739464115963,3.8028,2629.7,2629.1,3.80351]
[1739464116159,3.80314,2629.5,2628.9,4.58547]
[1739464116333,3.80322,2629.4,2628.9,4.58547]
[1739464116687,0.7827,2629.5,2628.9,3.80376]
[1739464116828,4.58571,2629.5,2629.0,3.80361]
[1739464117462,0.7827,2629.5,2629.1,3.80349]
[1739464117717,0.7637,2630.1,2630.0,3.80228]
[1739464118022,3.80148,2630.6,2629.8,3.80257]
[1739464118023,4.56535,2630.5,2629.8,3.80257]
[1739464118427,3.8017,2630.4,2629.8,4.258827]
[1739464118675,0.7637,2630.5,2629.7,0.76]
[1739464118860,3.80185,2630.3,2629.7,0.76]
[1739464119058,3.80218,2630.1,2629.5,7.58928]
[1739464119225,3.80218,2630.1,2629.6,3.80274]
[1739464119425,0.05798958,2630.0,2629.6,3.80274]
[1739464119635,0.05798958,2630.0,2629.5,0.7863]
[1739464119876,3.86033958,2630.0,2629.5,0.7863]
[1739464120020,3.86033958,2630.0,2629.5,3.7863]
[1739464120440,3.86033958,2630.0,2629.5,7.58927]
[1739464120657,3.80242,2629.9,2629.5,3.7863]
[1739464120828,3.80242,2629.9,2629.3,4.56238]
[1739464121042,0.7984,2630.0,2629.6,3.80285]
[1739464121240,0.05788831,2629.8,2629.6,3.80285]
[1739464121434,0.7984,2630.0,2629.6,3.80285]
[1739464121644,0.05788831,2629.7,2629.3,3.80322]
[1739464121835,4.60085,2629.9,2629.4,3.80311]
[1739464122033,0.05788831,2629.6,2629.4,3.80311]
[1739464122235,4.60085,2629.9,2629.3,1.11341057]
[1739464122451,0.05788831,2629.5,2629.3,3.80329]
[1739464122774,0.7984,2629.9,2629.2,4.56263]
[1739464123071,3.80287,2629.6,2628.9,4.56711]
[1739464123277,3.80322,2629.4,2628.9,4.56708]
[1739464123571,7.60646,2629.4,2628.9,4.56708]
[1739464123754,4.63561,2629.3,2628.8,0.1441624]
[1739464123963,3.80347,2629.2,2628.8,0.1441624]
[1739464124160,4.63563,2629.3,2628.8,0.1441624]
[1739464124333,4.63541,2629.5,2628.9,3.80374]
[1739464124982,0.05772626,2629.4,2629.0,0.02872429]
[1739464125272,0.05772626,2629.4,2629.0,3.83234429]
[1739464125432,0.05772626,2629.4,2629.2,3.80341]
[1739464125633,4.63491,2629.8,2629.3,3.80329]
[1739464125948,3.80255,2629.9,2629.4,3.80307]
[1739464126335,3.80255,2629.9,2629.2,3.80333]
[1739464126562,3.80266,2629.8,2629.2,3.80336]
[1739464126743,3.80264,2629.8,2629.3,3.8032]
[1739464127167,3.80266,2629.8,2629.1,4.56677]
[1739464127348,3.8028,2629.7,2629.2,3.80336]
[1739464127679,3.80308,2629.5,2629.1,0.7633]
[1739464127903,3.80329,2629.4,2628.9,3.80382]
[1739464128053,0.7699,2629.5,2628.9,3.80378]
[1739464128377,0.7699,2629.5,2628.8,0.8977624]
[1739464128675,3.80336,2629.3,2628.8,5.49127251]
[1739464128872,4.57301,2629.5,2628.9,3.80385]
[1739464129078,8.3761,2629.5,2629.0,3.80364]
[1739464129236,4.57299,2629.5,2629.0,3.80364]
[1739464129442,3.8033,2629.3,2628.8,5.49124251]
[1739464129978,4.57299,2629.5,2628.9,3.80373]
[1739464130183,4.57299,2629.5,2629.0,3.80366]
[1739464130551,4.57299,2629.5,2628.9,3.80386]
[1739464130781,4.57298,2629.5,2628.9,3.80386]
[1739464130939,4.57298,2629.5,2629.1,3.80358]
[1739464131143,3.80318,2629.4,2628.9,3.8038]
[1739464131335,3.80318,2629.4,2628.9,3.80379]
[1739464131679,3.80338,2629.3,2628.8,1.68728251]
[1739464131887,3.80338,2629.3,2628.8,4.7016924]
[1739464132182,3.86104546,2629.3,2628.9,3.80383]
[1739464132378,0.05766546,2629.3,2628.9,3.80383]
[1739464132563,7.60656,2629.4,2628.8,4.7016924]
[1739464132765,4.57338,2629.4,2628.8,3.9480924]
[1739464132939,3.86103546,2629.3,2628.8,3.9480924]
[1739464133139,0.05766546,2629.3,2628.8,3.9480924]
[1739464133380,3.80344,2629.2,2628.8,3.9480924]
[1739464133576,4.57338,2629.4,2628.8,3.9480924]
[1739464133745,3.80331,2629.3,2628.8,3.9480924]
[1739464133944,3.86097546,2629.3,2628.8,3.9480924]
[1739464134171,3.86097546,2629.3,2628.8,3.9480824]
[1739464134365,3.86097546,2629.3,2628.9,3.80386]
[1739464134593,0.05766546,2629.3,2629.0,3.80361]
[1739464134906,0.05766546,2629.3,2629.2,3.80343]
[1739464135104,0.05766546,2629.3,2629.2,4.183773]
[1739464135315,0.7776,2629.8,2629.2,0.380343]
[1739464135467,0.77854637,2630.0,2629.6,3.80279]
[1739464135810,2.28,2629.9,2629.6,3.80279]
[1739464136192,3.80259,2629.8,2629.3,3.80319]
[1739464136414,3.80336,2629.3,2628.8,0.9569624]
[1739464136619,3.80336,2629.3,2628.9,3.80386]
[1739464136815,6.08311,2629.5,2629.1,3.80358]
[1739464136972,3.80292,2629.6,2629.1,3.80351]
[1739464137173,3.803,2629.5,2629.1,3.80351]
[1739464137410,3.80294,2629.6,2629.1,3.80351]
[1739464137605,0.90556436,2629.6,2628.8,0.9569624]
[1739464137824,4.6005,2629.2,2628.8,0.1441624]
[1739464138283,0.797,2629.2,2628.8,3.9481624]
[1739464138806,0.797,2629.2,2628.8,3.9481124]
[1739464139018,6.08316,2629.4,2628.9,3.80386]
[1739464139169,7.071784,2629.4,2628.9,3.80386]
[1739464139600,7.071784,2629.4,2628.9,3.80377]
[1739464140108,3.80335,2629.3,2628.8,3.9481724]
[1739464140308,0.7874,2629.5,2628.9,0.02872933]
[1739464140481,0.8001,2629.8,2629.4,3.80314]
[1739464140806,0.8001,2629.8,2629.4,3.80308]
[1739464141006,0.8001,2629.8,2629.0,4.56282]
[1739464141173,0.8001,2629.8,2629.4,7.60614]
[1739464141369,0.8001,2629.8,2629.4,3.80307]
[1739464141578,4.60281,2629.8,2629.3,3.80318]
[1739464142104,3.80279,2629.7,2629.2,3.80334]
[1739464142407,3.80279,2629.7,2629.2,7.60668]
[1739464142602,3.80279,2629.7,2629.2,3.80334]
[1739464142915,3.80279,2629.7,2629.3,3.80328]
[1739464143112,3.80279,2629.7,2629.2,3.80337]
[1739464143309,6.08289,2629.6,2629.0,0.7591]
[1739464143610,4.56376,2629.3,2628.8,3.9480724]
[1739464143813,0.7604,2629.3,2628.9,0.02872759]
[1739464144015,0.7604,2629.3,2629.2,3.80343]
[1739464144319,1.82896,2629.7,2629.3,3.80318]
[1739464144617,3.80295,2629.6,2629.0,3.80358]
[1739464144775,3.8031,2629.5,2629.0,3.80358]
[1739464144977,5.13885311,2630.0,2628.8,3.9481624]
[1739464144978,3.80337,2629.3,2628.8,3.9481624]
[1739464145170,0.7604,2629.4,2628.8,0.1441624]
[1739464145371,0.565,2629.3,2628.8,0.1441624]
[1739464145610,3.80367,2629.1,2628.8,0.1441624]
[1739464145967,4.16399,2629.2,2628.8,0.1441624]
[1739464146167,0.36054,2629.2,2628.8,0.1441624]
[1739464146487,4.16408,2629.2,2628.8,0.1441624]
[1739464146727,2.28,2629.1,2628.8,0.1441624]
[1739464147054,6.44407,2629.2,2628.8,0.1441624]
[1739464147322,4.56356,2629.4,2628.8,0.9685624]
[1739464147527,3.80329,2629.3,2628.8,0.1441624]
[1739464147697,5.106916,2629.4,2628.8,0.1441624]
[1739464147897,3.80352,2629.2,2628.8,0.1441624]
[1739464148090,3.80329,2629.3,2628.8,0.1441624]
[1739464148487,3.80358,2629.1,2628.8,0.1441624]
[1739464148831,3.80374,2629.0,2628.8,0.1441624]
[1739464149013,4.66172044,2628.9,2628.8,0.1441624]
[1739464149193,7.56365762,2628.9,2628.8,0.1441624]
[1739464149395,7.51610592,2628.9,2628.8,0.1441624]
[1739464150216,10.51610592,2628.9,2628.8,0.1441624]
[1739464150531,12.46724889,2628.9,2628.8,0.1441624]
[1739464150757,12.46724889,2628.9,2627.1,0.757]
[1739464150758,2.2875,2628.2,2627.1,0.757]
[1739464151058,3.80528,2628.0,2627.4,7.61191]
[1739464151196,6.89473015,2628.1,2627.4,0.761191]
[1739464151388,2.28,2627.9,2627.3,3.80606]
[1739464151587,6.14190114,2627.8,2627.1,4.56338]
[1739464151850,3.80577,2627.6,2627.1,0.005]
[1739464152125,3.80598,2627.5,2627.1,0.005]
[1739464152329,3.80585,2627.6,2627.1,0.005]
[1739464152534,4.72157681,2627.6,2627.1,0.005]
[1739464152695,3.80622,2627.3,2627.1,0.005]
[1739464152897,4.60183,2627.2,2627.1,0.005]
[1739464153091,4.64941507,2627.2,2627.1,0.005]
[1739464153293,8.28920514,2627.2,2627.1,0.005]
[1739464153490,10.11224527,2627.2,2627.1,0.005]
[1739464153890,3.30591527,2627.2,2627.1,0.005]
[1739464154118,2.74091527,2627.2,2627.1,0.005]
[1739464154316,4.67661418,2627.2,2627.1,0.005]
[1739464154517,4.61044,2626.5,2626.4,0.16017025]
[1739464154702,4.63848,2626.2,2626.1,2.4e-06]
[1739464154905,0.8157,2625.4,2624.7,3.80983]
[1739464155130,0.04761717,2625.3,2625.0,3.80947]
[1739464155428,0.05229953,2625.3,2624.3,0.7695]
[1739464155630,0.05229953,2625.3,2624.5,4.41212973]
[1739464155937,0.05229953,2625.3,2625.1,3.80933]
[1739464156087,0.05229953,2625.3,2625.2,3.80923]
[1739464156291,0.06261484,2625.9,2625.8,3.80836]
[1739464156292,0.7893,2625.9,2625.8,3.80836]
[1739464156751,0.05043169,2625.9,2625.8,3.80836]
[1739464157049,0.7893,2626.3,2626.0,3.80801]
[1739464157253,0.7893,2626.3,2625.9,3.80818]
[1739464157418,0.05043169,2626.2,2626.0,3.80807]
[1739464157613,0.05043169,2626.2,2626.1,3.80792]
[1739464157812,4.63765,2626.9,2626.3,3.80754]
[1739464158039,0.05043169,2626.8,2626.3,3.80754]
[1739464158237,0.05043169,2626.8,2626.7,3.80705]
[1739464158881,0.7759238,2627.5,2627.0,3.80655]
[1739464159151,4.11079,2627.6,2627.0,3.80655]
[1739464159338,3.85649169,2627.4,2626.7,3.80693]
[1739464159545,3.8213,2627.3,2626.5,3.80721]
[1739464159744,0.38213,2627.2,2626.8,3.8069]
[1739464159930,0.05018778,2627.3,2627.1,3.80645]
[1739464160254,0.05018778,2627.3,2626.1,0.7842]
[1739464160255,0.05018778,2627.2,2626.7,3.80704]
[1739464160755,0.76502856,2627.6,2626.8,3.80684]
[1739464160756,3.80616,2627.4,2626.8,3.80684]
[1739464160963,0.7754,2627.0,2625.8,0.7867]
[1739464161258,0.015,2626.5,2625.9,3.80809]
[1739464161460,3.80729,2626.6,2626.0,3.80803]
[1739464161679,3.80696,2626.8,2626.1,3.80788]
[1739464161990,0.05018778,2626.5,2626.2,3.80775]
[1739464162111,3.80703,2626.8,2626.2,3.80775]
[1739464162315,3.80703,2626.8,2626.0,3.80802]
[1739464162316,3.8077,2626.3,2625.6,3.80854]
[1739464162578,3.8077,2626.3,2625.6,7.61707]
[1739464162787,0.05018778,2626.2,2625.6,3.80853]
[1739464163077,0.05018778,2626.2,2625.8,3.80825]
[1739464163226,0.05018778,2626.2,2625.1,5.12698574]
[1739464163433,4.56328,2626.5,2625.8,3.80827]
[1739464163628,4.56328,2626.5,2625.9,3.80814]
[1739464163839,4.56328,2626.5,2625.8,3.80827]
[1739464164152,0.05018778,2626.4,2626.0,3.80807]
[1739464164345,0.05018778,2626.4,2625.4,4.93418574]
[1739464164655,3.80787,2626.2,2625.6,3.80858]
[1739464164866,7.61576,2626.2,2625.6,3.80858]
[1739464165064,3.85750653,2626.1,2625.4,7.61772]
[1739464165365,3.80836,2625.8,2625.3,6.033]
[1739464165571,0.8295,2626.0,2625.4,3.80894]
[1739464165718,1.29818365,2626.0,2625.6,3.80864]
[1739464165919,0.04949653,2625.9,2625.8,3.80831]
[1739464166657,0.04949653,2625.9,2625.2,3.80921]
[1739464166843,0.04949653,2625.9,2625.3,3.80899]
[1739464167049,3.80781,2626.2,2625.3,3.80899]
[1739464167221,0.04883222,2625.8,2625.3,3.80899]
[1739464167422,3.8078,2626.2,2625.3,7.61798]
[1739464167750,0.04883222,2625.7,2625.6,3.80865]
[1739464167917,0.8295,2626.4,2625.6,3.80865]
[1739464168138,1.37001691,2626.4,2625.7,0.02884459]
[1739464168339,3.80786,2626.2,2625.5,3.80867]
[1739464168603,0.048839,2626.3,2625.3,3.80908]
[1739464168900,0.04900852,2626.2,2625.2,3.0]
[1739464169041,3.80873,2625.6,2625.1,0.7961]
[1739464169236,0.380873,2625.5,2625.1,4.60543]
[1739464169440,0.04900174,2625.5,2625.1,4.60543]
[1739464169898,0.04900174,2625.5,2625.1,0.7961]
[1739464170201,0.04900174,2625.5,2624.7,3.80985]
[1739464170202,0.04900174,2625.5,2624.7,0.7935]
[1739464170513,3.80934,2625.2,2624.6,3.81001]
[1739464170668,3.80916,2625.3,2624.8,3.8098]
[1739464170849,3.80899,2625.4,2624.8,3.8098]
[1739464171052,0.04849988,2625.2,2624.8,3.8098]
[1739464171414,3.80912,2625.3,2624.7,3.80986]
[1739464171540,0.04849988,2625.1,2624.7,3.80986]
[1739464171740,3.80873,2625.6,2625.0,3.80948]